Cogmind - Beta 15 @@@ ROGUE MODE // 2025.06.19 @ 21:45:39 Player: Envian Result: Destroyed by G-47 Trooper with Particle Gun Performance ------------- Evolutions (0) 0 Regions Visited (1) 200 Robots Destroyed (9) 45 Value Destroyed (211) 211 Prototype IDs (0) 0 Alien Tech Used (0) 0 Bonus (0) 0 TOTAL SCORE: 456 Bonus ------- None Cogmind --------- Core Integrity 0/250 Matter 280/300 Energy 54/100 System Corruption 0% Temperature Cool (25) Movement Core (1400) Ox27 Location -10/Materials Parts ------- > --- POWER (1) -------- (None) > --- PROPULSION (2) --- (None) > --- UTILITY (2) ------ Huge Storage Unit > --- WEAPON (2) ------- Small Laser Small Laser > --- INVENTORY (25) --- Improved Heat Sink Structural Scanner Sensor Array Signal Interpreter Signal Interpreter Seismic Detector Medium Armor Plating Medium Armor Plating Medium Armor Plating Peak State ------------ > --- POWER ------------ Light Ion Engine > --- PROPULSION ------- Light Treads Light Treads > --- UTILITY ---------- Huge Storage Unit Medium Armor Plating > --- WEAPON ----------- Small Laser Small Laser > --- INVENTORY -------- Improved Heat Sink Seismic Detector Medium Armor Plating Medium Armor Plating Medium Armor Plating Small Laser [Rating: 9] Favorites ----------- Power Light Ion Engine Engine Light Ion Engine Propulsion Light Treads Treads Light Treads Utility Huge Storage Unit Device Seismic Detector Storage Huge Storage Unit Protection Medium Armor Plating Weapon Small Laser Energy Gun Small Laser Special Weapon Mining Laser Build | -11 -10 ------- Run | Yrd Mat Slots Evolved . | . . Power . | . . Propulsion . | . . Utility . | . . Weapon . | . . Parts Attached 14 | 6 8 Power 2 | 1 1 Engine 2 | 1 1 Core . | . . Reactor . | . . Propulsion 2 | 2 . Treads 2 | 2 . Leg . | . . Wheel . | . . Hover . | . . Flight . | . . Utility 6 | 1 5 Device 2 | . 2 Storage 3 | 1 2 Processor . | . . Hackware . | . . Protection 1 | . 1 Artifact . | . . Weapon 4 | 2 2 Energy Gun 3 | 2 1 Energy Cannon . | . . Ballistic Gun . | . . Ballistic Cannon . | . . Launcher . | . . Special Weapon 1 | . 1 Impact Weapon . | . . Slashing Weapon . | . . Piercing Weapon . | . . Special Melee Weapon . | . . Unidentified Prototypes . | . . Parts Lost 7 | . 7 Power 2 | . 2 Propulsion 2 | . 2 Utility 1 | . 1 Weapon 2 | . 2 Highest Loss Streak 6 | . 6 To Critical Strikes . | . . Average Backups 5 | . 5 Power . | . . Propulsion . | . . Utility 3 | . 4 Weapon . | . 1 Tool/Special . | . . Unused Backups 7 | . 7 Power . | . . Propulsion . | . . Utility 7 | . 7 Weapon . | . . Tool/Special . | . . Average Slot Usage (%) 96 | . 96 Engine 13 | . 13 Treads 27 | . 27 Device 8 | . 8 Storage 14 | . 14 Protection 4 | . 4 Energy Gun 25 | . 25 Special Weapon 2 | . 2 Peak Build Rating 9 | 6 9 Average Rating 7 | 4 7 On Entrance 3 | . 6 Naked Turns . | . . Heaviest Build 92 | 10 92 Greatest Support 40 | 40 40 Greatest Overweight (x) 26 | . 26 Average Overweight (x) 1 | . 1 Largest Inventory Capacity 25 | 8 25 Average Capacity 21 | 7 22 Most Carried 11 | 1 11 Average Carried 5 | . 5 Final Capacity 25 | 8 25 Final Carried 9 | 1 9 Class Distribution -------------------- 100% | Mutant Dominant Class ---------------- Mutant | -10/Materials Resources | -11 -10 ----------- Run | Yrd Mat Matter Collected 307 | 225 82 Remotely . | . . Salvage Created 255 | 56 199 Parts 15 | 3 12 Haulers Intercepted . | . . Recyclers Shooed . | . . Parts Field Recycled . | . . Retrieved Matter . | . . Parts Self-Destructed . | . . Prevented . | . . Kills | -11 -10 ------- Run | Yrd Mat Combat Hostiles Destroyed 7 | . 7 Guns 6 | . 6 Classes Destroyed 4 | 1 3 Recycler 1 | 1 . Watcher 1 | . 1 Swarmer 3 | . 3 Grunt 4 | . 4 Best Kill Streak 3 | 1 3 Combat Bots Only 3 | . 3 Max Kills in Single Turn 1 | 1 1 Gunslinging . | . . Exploded . | . . Melee . | . . Uniques/NPCs Destroyed . | . . Combat | -11 -10 -------- Run | Yrd Mat Hostile Shots Fired 130 | . 130 Missed 34 | . 34 Hits 96 | . 96 Projectile 96 | . 96 Damage Taken 981 | . 981 Core 263 | . 263 Absorbed by Shields . | . . Core Remaining (%) 100 | 100 . Volleys Fired 39 | 3 36 Largest 2 | 2 2 Hottest 100 | 80 100 Shots Fired 74 | 6 68 Gun 70 | 6 64 Cannon . | . . Launcher . | . . Special 4 | . 4 Kinetic . | . . Thermal 74 | 6 68 Explosive . | . . Electromagnetic . | . . Robot Hit Streak 7 | 3 7 Robot Miss Streak 2 | 1 2 Penetration Max . | . . Secondary Targets . | . . Shots Hit Robots 44 | 4 40 Core Hits 15 | 2 13 Critical Kills . | . . Critical Parts Destroyed . | . . Critical Strikes . | . . Melee Attacks . | . . Impact . | . . Slashing . | . . Piercing . | . . Sneak Attacks . | . . Combat Hostiles . | . . Follow-up Attacks . | . . Damage Inflicted 494 | 46 448 Guns 485 | 46 439 Cannons . | . . Explosions . | . . Melee . | . . Ramming 9 | . 9 Kinetic . | . . Thermal 485 | 46 439 Explosive . | . . Electromagnetic . | . . Impact . | . . Slashing . | . . Piercing . | . . Highest Corruption . | . . Average Corruption . | . . Corruption Purged . | . . Corruption Blocked . | . . Overload Shots . | . . Overflow Damage . | . . Projectiles . | . . Explosions . | . . Melee . | . . Knockbacks . | . . Impact . | . . Kinetic . | . . Secondary . | . . Self-Inflicted Damage . | . . Shots . | . . Rammed 2 | . 2 Targets Rammed 2 | . 2 Kicked . | . . Crushed . | . . Highest Temperature 333 | 54 333 Average Temperature 81 | 29 85 Received Heat Transfer 306 | . 306 Siege Activations . | . . Martial Activations . | . . Shielding Activations . | . . Robots Disrupted . | . . Combat Hostiles . | . . Robots Corrupted . | . . Combat Hostiles . | . . Parts Fried . | . . Impact Corruptions . | . . Robots Melted 1 | . 1 Combat Hostiles 1 | . 1 Parts Melted 1 | . 1 Heat Transferred 1100 | 100 1000 Parts Sabotaged . | . . Parts Stolen . | . . Parts Stripped . | . . Power Chain Reactions . | . . Alert | -11 -10 ------- Run | Yrd Mat Maximum Alert Level . | . . Low Security (%) 100 | 100 100 Level 1 . | . . Level 2 . | . . Level 3 . | . . Level 4 . | . . Level 5 . | . . High Security . | . . Max Security . | . . Peak Influence 70 | 5 70 Initial . | . . Average 6 | . 7 Influence Increases 239 | 5 234 Destroy 0b10 Robot/C 140 | . 140 Destroy 0b10 Robot/NC 10 | 5 5 Destroy Leader 22 | . 22 Successful Hack 5 | . 5 Disable Machine 15 | . 15 Destroy Structure 2 | . 2 Lose Combat Pursuer 45 | . 45 Influence Decreases 169 | 5 164 Time Decay 154 | 5 149 Lost Part 15 | . 15 Squads Dispatched . | . . Investigation . | . . Extermination . | . . Reinforcement . | . . Assault . | . . Garrison . | . . Intercept . | . . Searches Triggered . | . . Construction Impeded . | . . Haulers Reinforced . | . . Active Scanning Responses . | . . Cargo Convoy Interrupts . | . . Stealth | -11 -10 --------- Run | Yrd Mat Distress Signals 1 | . 1 Communications Jammed . | . . Distress Signals . | . . Times Spotted 14 | . 14 Peak Tracking Total 6 | . 6 Tactical Retreats 2 | . 2 Traps | -11 -10 ------- Run | Yrd Mat Traps Triggered . | . . Indirectly . | . . Trap Hack Attempts . | . . Triggered . | . . Disarmed . | . . Reprogrammed . | . . Reused . | . . Traps Extracted . | . . Installed . | . . Triggered . | . . Machines | -11 -10 ---------- Run | Yrd Mat Machines Disabled 1 | . 1 Max in Single Turn 1 | . 1 Machines Repaired . | . . Machines Dismantled . | . . Machines Sabotaged . | . . Overloaded Fab Kills . | . . Hacking | -11 -10 --------- Run | Yrd Mat Machines Accessed 1 | . 1 Terminals 1 | . 1 Fabricators . | . . Repair Stations . | . . Recycling Units . | . . Scanalyzers . | . . Garrison Access . | . . Total Hacks 2 | . 2 Successful 2 | . 2 Failed . | . . Catastrophic . | . . Database Lockouts . | . . Manual 2 | . 2 Terminals 2 | . 2 Fabricators . | . . Repair Stations . | . . Recycling Units . | . . Scanalyzers . | . . Garrison Access . | . . Terminal Hacks . | . . Fabricator Hacks . | . . Repair Station Hacks . | . . Recycling Unit Hacks . | . . Scanalyzer . | . . Garrison Access Hacks . | . . Unauthorized Hacks 2 | . 2 Terminals 2 | . 2 Botnet 1 | . 1 Operators 1 | . 1 Fabricators . | . . Repair Stations . | . . Recycling Units . | . . Scanalyzers . | . . Garrison Access . | . . Data Cores Recovered . | . . Used . | . . Hacking Detections . | . . Full Trace Events . | . . Feedback Events . | . . Feedback Blocked . | . . Robot Schematics Acquired . | . . Robots Built . | . . Authchips . | . . Time . | . . Total Robot Build Rating . | . . Part Schematics Acquired . | . . Parts Built . | . . Authchips . | . . Time . | . . Total Part Build Rating . | . . Parts Repaired . | . . Time . | . . Parts Recycled . | . . Recycled Matter . | . . Retrieved Matter . | . . Retrieved Components . | . . Parts Scanalyzed . | . . Part Schematics Acquired . | . . Parts Damaged . | . . Bothacking | -11 -10 ------------ Run | Yrd Mat Used RIF Installer . | . . Robots Hacked . | . . Non-combat . | . . Combat . | . . Robot Hacks Applied . | . . Relay Couplers Released . | . . Fabnet Peak Effective % . | . . Robots Rewired . | . . Allies Hacked . | . . Hacks Repelled . | . . Allies | -11 -10 -------- Run | Yrd Mat Total Allies . | . . Largest Group . | . . Highest-Rated Group . | . . Highest-Rated Ally . | . . Total Orders . | . . Ally Attacks . | . . Total Damage . | . . Kills . | . . Allies Corrupted . | . . Allies Melted . | . . Intel | -11 -10 ------- Run | Yrd Mat Active Infowar (turns) 793 | . 793 Structural 343 | . 343 Seismic 450 | . 450 Robot Analysis Total . | . . Derelict Logs Recovered . | . . Drone Launches . | . . Drone Recoveries . | . . Exploration | -11 -10 ------------- Run | Yrd Mat Turns Passed 1345 | 88 1257 Spaces Moved 443 | 46 397 Core 4 | 3 1 Treads 439 | 43 396 Legs . | . . Wheels . | . . Hover . | . . Flight . | . . Fastest Speed 50 | 50 160 Average Speed 265 | 152 279 Slowest Speed 1350 | 160 1350 Overloaded Moves . | . . Propulsion Burnouts . | . . Robots Hopped . | . . Potential Cave-ins . | . . Cave-ins Triggered . | . . Exploration Rate (%) 29 | 4 54 Regions Visited 1 Branch Regions . Pre-discovered Areas . | . . Known Exits Taken . | . . Unknown Exits Taken 1 | 1 . Scrap Searched . | . . Spaces Dug 2 | . 2 Terrain Destroyed 2 | . 2 Melee . | . . Projectile 2 | . 2 AOE . | . . Terrain Rammed . | . . Walls Destroyed . | . . Machines Disabled . | . . Actions | -11 -10 --------- Run | Yrd Mat Total 521 | 55 466 Wait 8 | . 8 Move 442 | 45 397 Hop . | . . Pick Up 12 | 1 11 Fast Attach 7 | 6 1 Attach 3 | . 3 Detach . | . . Swap 6 | . 6 Drop 2 | . 2 Fire 39 | 3 36 Melee . | . . Ram . | . . Kick . | . . Crush 2 | . 2 Escape Stasis . | . . Rewire . | . . Trap . | . . Miscellaneous . | . . Route ------- -11/Scrapyard -10/Materials (discovered 2 exits: [*Mat] / [*Min]) History --------- Turn | Location | Event 42 | -11/Scrapyard | Discovered new exit (range 13) 89 | -11/Scrapyard | Entered Materials 152 | -10/Materials | Discovered new exit (range 16) 308 | -10/Materials | Build established: Mutant 1266 | -10/Materials | Discovered new exit (range 10) 1284 | -10/Materials | Core integrity fell below 50% 1311 | -10/Materials | Core integrity fell below 20% 1346 | -10/Materials | Destroyed by G-47 Trooper with Particle Gun Last Messages --------------- 01275_ K-01 Serf cleans the Material Processor. 01280_ Lgt. Ion Engine destroyed. 01285_ K-01 Serf cleans the Material Processor. 01294_ Med. Armor Plating destroyed. 01295_ K-01 Serf cleans the Material Processor. 01298_ Mining Laser destroyed. 01298_ Lgt. Treads destroyed. 01300_ U-05 Engineer destroyed. 01301_ K-01 Serf cleans the Material Processor. 01303_ K-01 Serf collects debris. 01310_ M-13 Machinist repairs S-10 Pest. 01314_ Lgt. Treads destroyed. 01322_ K-01 Serf cleans the Material Processor. 01327_ Sml. Laser destroyed. 01328_ K-01 Serf cleans the Material Processor. 01330_ S-10 Pest destroyed. 01331_ K-01 Serf collects debris. 01336_ S-10 Pest destroyed. 01336_ K-01 Serf collects debris. 01345_ S-10 Pest destroyed. Map ----- +----------------------------------------------------+ | | | | | | | | | | | | | | | | | | | | | ?????????????????????????????????????????????????? | | ?????????????????????????????????????????????????? | | ?????????????????????????????########?#####??????? | | ?????????????????????????????#== !!##!!!!##?????? | | ?????????????????????????????#== !!#! !#?????? | | ?????????????????????????????# # #?????? | | ?????????????????????????????# # #????????? | | ???????????############?###### #????????? | | ???????????######### ? [ # #????????? | | ???????????## ## # #########????????? | | ???????????## < ## """ # #%"T" =#??######## | | ???????????## ## """"" # +% #??# | | ???????????## ## """"" # # """ #??# """ | | ???????????## ## """"" # # """ #### """ % | | ????? ####### ## """ [ # # """ # + """ | | ? ####### ## @*= # # # # | | ? ########g### ######## # """ | | ? ####### g% # """ = | | ? !%| + """ | | ? ! #### ##### # | | ?? ######+### """ """ ##?# #???# # | | ?? ## # """"" """"" ##?# #???# # | | ??????????? # """"" """"" ####+#####+######## | | ??????????? # """"" """"" ### ! #?????? | | ??????????? # """ """ ### #?????? | | ??????????? # # """ """ #?????? | | ??????????? # # """ """ #?????? | | ???????###### # """ """ #?????? | | ?????? + """ """ #?????? | | ?????? ######## # """ """ #?????? | | ?????? # # # ###???? | | ?????? # """ # #############???? | | ??????" + """ # ##???? | | ??????" #% """ # ##???? | | ??????? # # ##???? | | ??????? # """ ###########+#####???? | | ???????? ####" #### # """ ## ![ #####?? | | ???????????##"T#### # """ ## !! "" # | | ????????????##???## #= ## ! Y" # """ | | ?????????????????## #% """ ## "" # """ | +----------------------------------------------------+ Best States ------------- Heat Dissipation 25 Energy Generation 10 Energy Capacity 125 Matter Stores 300 Matter Capacity 300 Sight Range 16 Terrain Scan Density 10 Armor Coverage 225 Evasion (%) 40 Recoil Reduction 2 Item Schematics ----------------- None Robot Schematics ------------------ None Fabricated ------------ Nothing Repaired ---------- Nothing Alien Tech Used ----------------- None Achievements -------------- None Challenges ------------ None Game ------ Seed ImprovedMakeshiftExpander Manual? 0 Play Time 00:07:13 Cumulative 45.8 hours Start 2025.06.19 @ 21:39:56 End 2025.06.19 @ 21:45:39 Sessions 1 Manual Loads 0 Difficulty Rogue Special Mode None Game No. 58 Rogue 58 Adventurer 0 Explorer 0 Win Type - Total 1 Types 1/0/0/0/0/0/0/0/0/0 Lore% 36 Gallery% 31 Achievement% 34 Wizard Run 0 Options --------- Layout 0 ASCII 0 Keyboard 0 Movement Numpad Keybinds 0 Fullscreen 1 Font 24/Smallcaps Map View 76x50 Zoom Use 0% Tactical HUD 1 Map Filters NONE Filters NONE Steam 1 RUN: cbd069ea-13b1-4c5b-8195-047c6e85acf8